bitfinex-derivatives/quotes_SOLF0:USTF0_20250114
["timestamp","ask_amount","ask_price","bid_price","bid_amount"]
[1736813383180,2.748,182.02,181.93,1.5897]
[1736813383484,2.748,182.02,181.98,2.7484]
[1736813384486,13.04988536,182.05,181.98,2.7484]
[1736813384686,2.748,182.01,181.98,2.7484]
[1736813390386,2.7478,182.03,181.96,13.04988536]
[1736813390587,13.04988536,182.08,181.99,13.04988536]
[1736813390793,1.664,182.1,181.99,13.04988536]
[1736813391087,2.7474,182.05,182.02,2.7478]
[1736813392495,2.7474,182.05,182.01,2.748]
[1736813393298,13.04988536,182.11,182.03,2.7477]
[1736813394203,2.7474,182.06,182.03,2.7477]
[1736813395896,2.7474,182.06,182.02,2.7478]
[1736813396300,13.04988536,182.11,182.02,13.04988536]
[1736813396505,2.747,182.08,182.04,2.7475]
[1736813397097,2.7471,182.07,182.04,2.7475]
[1736813397301,8.34642973,182.08,182.03,1.5564]
[1736813397498,8.34642973,182.06,181.99,7.2874]
[1736813397698,8.34642973,182.06,182.01,8.34642973]
[1736813397902,2.7477,182.04,182.01,8.34642973]
[1736813398508,2.748,182.01,181.99,1.6274]
[1736813398705,2.748,182.01,181.99,9.97382973]
[1736813399303,2.7479,182.02,181.99,12.72212973]
[1736813400208,2.7482,182.0,181.99,9.97382973]
[1736813400411,8.34642973,182.04,181.98,1.6673]
[1736813400809,2.7478,182.03,181.98,1.6673]
[1736813401109,8.34642973,182.04,181.98,1.6673]
[1736813401612,2.7481,182.01,181.98,1.6673]
[1736813402611,8.34642973,182.0,181.93,191.0]
[1736813402812,2.7487,181.97,181.94,11.09542973]
[1736813403404,3.3415,182.08,181.96,2.7488]
[1736813403708,8.34642973,182.02,181.96,8.34642973]
[1736813403903,8.34642973,182.04,181.98,8.34642973]
[1736813404711,2.7481,182.01,181.98,11.09482973]
[1736813405514,2.7481,182.01,181.98,2.7484]
[1736813405916,2.7479,182.02,181.99,2.7483]
[1736813406113,8.34642973,182.04,181.98,8.34642973]
[1736813406307,8.34642973,182.02,181.96,8.34642973]
[1736813406517,42.81879701,183.39,182.0,8.34642973]
[1736813406518,150.5059882,182.14,182.0,8.34642973]
[1736813406711,8.34642973,182.11,182.05,8.34642973]
[1736813407213,150.5059882,182.14,182.07,8.34642973]
[1736813407416,8.34642973,182.13,182.07,8.34642973]
[1736813407712,8.34642973,182.09,182.01,8.8913]
[1736813407916,8.34642973,182.09,182.02,8.34642973]
[1736813408514,2.7471,182.07,182.02,11.09422973]
[1736813409014,2.7471,182.07,182.04,8.34642973]
[1736813410020,2.747,182.08,182.04,11.09402973]
[1736813410225,2.747,182.08,182.06,8.34642973]
[1736813410722,8.34642973,182.11,182.04,11.09402973]
[1736813410924,8.34642973,182.09,182.04,8.34642973]
[1736813411424,2.7472,182.07,182.04,8.34642973]
[1736813412823,8.34642973,182.09,182.04,8.34642973]
[1736813413022,2.7473,182.06,182.04,8.34642973]
[1736813413525,8.34642973,182.09,182.04,8.34642973]
[1736813413726,2.7472,182.07,182.04,8.34642973]
[1736813414925,2.7472,182.07,182.04,11.09392973]
[1736813415629,1.6509,182.15,182.04,11.09392973]
[1736813415630,2.747,182.08,182.05,2.7474]
[1736813417926,8.34642973,182.11,182.04,8.34642973]
[1736813418127,1.6509,182.15,182.06,8.34642973]
[1736813418327,8.34642973,182.12,182.06,8.34642973]
[1736813418728,8.34642973,182.14,182.08,8.34642973]
[1736813419927,8.34642973,182.12,182.06,8.34642973]
[1736813420827,2.7471,182.08,182.06,8.34642973]
[1736813424228,1.6509,182.15,182.04,11.09392973]
[1736813424229,8.34642973,182.1,182.04,11.09392973]
[1736813424430,8.34642973,182.1,182.04,2.7475]
[1736813424735,8.34642973,182.1,182.05,8.34642973]
[1736813424935,1.6509,182.15,182.07,8.34642973]
[1736813425228,8.34642973,182.13,182.07,8.34642973]
[1736813425636,1.6509,182.15,182.09,8.34642973]
[1736813425828,9.99732973,182.15,182.09,8.34642973]
[1736813426236,2.7466,182.11,182.09,8.34642973]
[1736813428139,2.7467,182.1,182.09,8.34642973]
[1736813428535,2.7467,182.1,182.07,11.09352973]
[1736813431433,1.6535,182.16,182.09,8.34642973]
[1736813431638,2.7463,182.13,182.11,8.34642973]
[1736813433336,8.34642973,182.17,182.11,8.34642973]
[1736813433539,2.7464,182.12,182.11,8.34642973]
[1736813433740,8.34642973,182.15,182.01,199.8913]
[1736813433938,2.7468,182.09,182.08,8.34642973]
[1736813434136,2.7468,182.09,182.01,199.8913]
[1736813434437,8.34642973,182.13,182.01,199.8913]
[1736813434640,2.7465,182.11,182.06,8.34642973]
[1736813434836,8.34642973,182.13,182.08,8.34642973]
[1736813435340,2.7467,182.1,182.08,8.34642973]
[1736813435840,2.7468,182.09,182.08,8.34642973]
[1736813436237,8.34642973,182.13,182.06,8.34642973]
[1736813436541,2.7474,182.06,182.03,8.34642973]
[1736813436842,8.34642973,182.09,182.03,8.34642973]
[1736813437140,2.7478,182.03,182.01,15.63822973]
[1736813437644,2.7478,182.03,182.01,9.99822973]
[1736813439940,8.34642973,182.07,182.01,9.99822973]
[1736813440144,2.7476,182.04,182.01,12.74622973]
[1736813440335,8.34642973,182.07,181.99,5.64]
[1736813440536,8.34642973,182.07,182.02,8.34642973]
[1736813440944,2.7477,182.04,182.02,8.34642973]
[1736813441531,8.34642973,182.07,182.02,8.34642973]
[1736813441738,2.7477,182.03,182.02,8.34642973]
[1736813443143,3.3042,182.14,182.02,8.34642973]
[1736813443338,2.7475,182.05,182.02,8.34642973]
[1736813443740,2.7475,182.05,182.04,8.34642973]
[1736813447348,2.7475,182.05,182.02,11.09422973]
[1736813449547,2.7476,182.04,182.02,11.09422973]
[1736813451742,8.34642973,182.05,181.97,3.2192]
[1736813451941,8.34642973,182.03,181.97,8.34642973]
[1736813452149,2.7486,181.97,181.95,8.34642973]
[1736813455448,2.7488,181.96,181.93,2.7492]
[1736813455649,2.7488,181.96,181.94,8.34642973]
[1736813456845,2.7488,181.96,181.94,11.09552973]
[1736813457849,2.7488,181.96,181.94,2.7491]
[1736813458042,2.7488,181.96,181.95,8.34642973]
[1736813458243,8.34642973,182.01,181.95,8.34642973]
[1736813458545,2.7487,181.97,181.95,8.34642973]
[1736813459348,2.749,181.95,181.94,8.34642973]
[1736813459744,8.34642973,181.99,181.92,1.6253]
[1736813460051,2.7492,181.93,181.92,1.6253]
[1736813461548,5.4954,182.04,181.92,9.97172973]
[1736813461751,2.7486,181.98,181.97,8.34642973]
[1736813463452,2.7486,181.98,181.95,8.34642973]
[1736813467446,2.7487,181.97,181.94,2.749]
[1736813467652,8.34642973,182.02,181.95,8.34642973]
[1736813468456,110.64463914,182.04,182.0,8.34642973]
[1736813469151,2.7477,182.03,182.0,11.09452973]
[1736813469359,110.64463914,182.04,182.0,8.34642973]
[1736813469856,8.34642973,182.06,182.0,8.34642973]
[1736813470053,2.7479,182.02,182.0,8.34642973]
[1736813470556,8.34642973,182.08,182.0,8.34642973]
[1736813470856,2.7475,182.05,182.02,8.34642973]
[1736813471054,2.7475,182.05,182.04,8.34642973]
[1736813472058,8.34642973,182.06,181.95,5.62]
[1736813472252,8.34642973,182.02,181.96,8.34642973]
[1736813472654,8.34642973,182.02,181.96,11.09512973]
[1736813473056,8.34642973,182.04,181.98,8.34642973]
[1736813474058,2.7483,182.0,181.98,8.34642973]
[1736813475550,2.748,182.02,181.98,11.09482973]
[1736813475956,2.748,182.02,182.0,8.34642973]
[1736813476158,8.34642973,182.05,182.0,8.34642973]
[1736813476458,2.748,182.01,182.0,8.34642973]
[1736813479458,2.748,182.01,181.96,1.7154]
[1736813479459,2.7483,182.0,181.98,8.34642973]
[1736813482365,2.7481,182.01,181.98,8.34642973]
[1736813483166,2.7482,182.0,181.98,8.34642973]
[1736813488069,5.4935,182.1,181.98,8.34642973]
[1736813488268,261.12166691,182.11,182.08,8.34642973]
[1736813488269,150.5059882,182.11,182.08,8.34642973]
[1736813488470,150.5059882,182.11,182.1,8.34642973]
[1736813488978,11.63772973,182.18,182.1,8.34642973]
[1736813489376,3.2913,182.18,182.12,8.34642973]
[1736813489778,1.7197,182.18,182.12,8.34642973]
[1736813489977,2.7459,182.16,182.12,8.34642973]
[1736813490276,8.34642973,182.19,182.12,8.34642973]
[1736813490479,2.746,182.15,182.12,8.34642973]
[1736813491180,8.34642973,182.19,182.12,8.34642973]
[1736813491181,2.7461,182.14,182.12,8.34642973]
[1736813493080,1.5984,182.23,182.12,8.34642973]
[1736813493275,1.5984,182.23,182.16,8.34642973]
[1736813493479,9.92302973,182.24,182.18,8.34642973]
[1736813494183,2.7452,182.2,182.18,8.34642973]
[1736813495277,5.67360908,182.26,182.18,8.34642973]
[1736813495472,5.67360908,182.26,182.15,5.62]
[1736813495473,5.67360908,182.26,182.21,8.34642973]
[1736813495881,2.7447,182.24,182.21,8.34642973]
[1736813496082,5.67360908,182.26,182.21,8.34642973]
[1736813496878,2.7448,182.23,182.21,8.34642973]
[1736813499284,0.1632,182.35,182.22,5.62]
[1736813499481,8.50962973,182.35,182.28,8.34642973]
[1736813499684,0.1632,182.35,182.3,8.34642973]
[1736813499883,175.56299785,182.31,182.3,8.34642973]
[1736813501281,172.81949785,182.31,182.28,13.00397731]
[1736813501484,2.7437,182.3,182.28,13.00397731]
[1736813501987,2.7437,182.3,182.28,18.64397731]
[1736813502188,2.7435,182.31,182.28,18.64397731]
[1736813503287,3.38,182.38,182.28,18.64397731]
[1736813504588,2.7431,182.34,182.29,2.7437]
[1736813504786,0.1626,182.4,182.31,13.00397731]
[1736813505390,2.7429,182.35,182.31,13.00397731]
[1736813506292,2.7425,182.38,182.31,15.74747731]
[1736813506493,0.1626,182.4,182.31,15.74747731]
[1736813506791,110.43530597,182.41,182.31,15.74747731]
[1736813507085,110.43530597,182.41,182.32,2.7433]
[1736813507294,110.43530597,182.41,182.34,13.00397731]
[1736813507589,110.43530597,182.41,182.35,5.64]
[1736813508188,2.7426,182.38,182.35,5.64]
[1736813508394,14.69827731,182.46,182.35,5.64]
[1736813508395,1.6943,182.46,182.37,13.00397731]
[1736813509090,1.6431,182.48,182.37,13.00397731]
[1736813509291,1.6431,182.48,182.38,5.64]
[1736813509591,2.7422,182.4,182.38,5.64]
[1736813510591,1.6431,182.48,182.38,5.64]
[1736813510794,2.7423,182.39,182.38,5.64]
[1736813513395,13.00397731,182.46,182.34,1.6265]
[1736813513600,13.00397731,182.4,182.32,1.7138]
[1736813514199,2.7432,182.33,182.32,1.7138]
[1736813515492,2.7434,182.32,182.29,13.00397731]
[1736813515693,2.7434,182.32,182.3,5.64]
[1736813516800,13.00397731,182.4,182.3,5.64]
[1736813517001,2.7432,182.33,182.3,5.64]
[1736813518206,2.7432,182.33,182.3,8.3836]
[1736813518913,2.7432,182.33,182.32,13.00397731]
[1736813519808,13.00397731,182.43,182.32,13.00397731]
[1736813520107,110.40295913,182.45,182.3,5.64]
[1736813520108,110.40295913,182.45,182.35,13.00397731]
[1736813520804,2.7418,182.42,182.35,13.00397731]
[1736813521005,110.40295913,182.45,182.35,13.00397731]
[1736813521598,13.00397731,182.43,182.31,3.2446]
[1736813521799,13.00397731,182.4,182.29,18.62397731]
[1736813522003,13.00397731,182.4,182.26,1.5992]
[1736813522210,13.00397731,182.37,182.26,1.5992]
[1736813522509,13.00397731,182.34,182.22,20.28937731]
[1736813522810,2.7446,182.24,182.22,20.28937731]
[1736813523607,2.7444,182.25,182.22,20.28937731]
[1736813524708,2.7447,182.24,182.22,13.00397731]
[1736813525015,13.00397731,182.31,182.19,13.00397731]
[1736813525214,2.7451,182.21,182.19,13.00397731]
[1736813525608,13.00397731,182.28,182.19,13.00397731]
[1736813525907,2.7453,182.19,182.18,5.64]
[1736813526313,13.00397731,182.25,182.16,13.00397731]
[1736813526808,13.00397731,182.25,182.14,10.6402]
[1736813527209,13.00397731,182.25,182.13,13.00397731]
[1736813527716,2.7449,182.22,182.13,13.00397731]
[1736813527911,13.00397731,182.25,182.13,13.00397731]
[1736813528512,2.7457,182.17,182.13,13.00397731]
[1736813528710,13.00397731,182.25,182.13,13.00397731]
[1736813529615,2.7459,182.16,182.13,13.00397731]
[1736813530417,13.00397731,182.25,182.13,13.00397731]
[1736813530719,13.00397731,182.22,182.13,13.00397731]
[1736813531313,13.00397731,182.22,182.1,13.00397731]
[1736813531720,2.7462,182.13,182.1,13.00397731]
[1736813532220,1.6171,182.21,182.1,13.00397731]
[1736813532418,2.7461,182.14,182.1,13.00397731]
[1736813532816,2.7464,182.13,182.1,13.00397731]
[1736813534023,2.7464,182.12,182.1,13.00397731]
[1736813534219,1.6016,182.2,182.1,13.00397731]
[1736813534421,13.00397731,182.19,182.08,4.8755]
[1736813534618,13.00397731,182.19,182.07,13.00397731]
[1736813534818,1.692,182.18,182.07,13.00397731]
[1736813535915,2.7468,182.1,182.07,13.00397731]
[1736813539728,1.692,182.18,182.07,13.00397731]
[1736813539927,2.7468,182.09,182.07,13.00397731]
[1736813541725,1.692,182.18,182.08,2.7469]
[1736813541925,112.16163423,182.2,182.1,13.00397731]
[1736813542330,2.7464,182.12,182.1,13.00397731]
[1736813542628,13.00397731,182.19,182.1,13.00397731]
[1736813542930,2.7465,182.11,182.1,13.00397731]
[1736813543428,13.00397731,182.19,182.07,13.00397731]
[1736813545725,2.7468,182.09,182.07,13.00397731]
[1736813547234,2.747,182.08,182.07,13.00397731]
[1736813547932,2.7474,182.05,182.04,13.00397731]
[1736813548325,13.00397731,182.13,182.01,18.64397731]
[1736813548528,2.7476,182.04,182.01,18.64397731]
[1736813552833,2.7474,182.06,182.01,18.64397731]
[1736813553029,2.7474,182.06,182.05,13.00397731]
[1736813555336,2.7476,182.04,182.03,5.62]
[1736813556638,2.7476,182.04,182.02,13.00397731]
[1736813557437,7.0511,182.15,181.91,195.05627384]
[1736813557438,13.00397731,182.08,181.91,195.05627384]
[1736813557645,13.00397731,182.08,181.96,2.7488]
[1736813558032,2.7483,182.0,181.96,2.7488]
[1736813558445,8.7587,182.1,181.95,13.00397731]
[1736813558446,13.00397731,182.05,181.95,13.00397731]
[1736813558743,2.7486,181.97,181.95,13.00397731]
[1736813559337,13.00397731,182.05,181.92,20.53907731]
[1736813559338,2.7488,181.96,181.92,20.53907731]
[1736813559639,13.00397731,182.05,181.92,23.42967731]
[1736813559839,13.00397731,182.02,181.92,17.78967731]
[1736813560041,2.7491,181.95,181.92,17.78967731]
[1736813560639,13.00397731,182.02,181.92,17.78967731]
[1736813560838,13.00397731,182.05,181.92,17.78967731]
[1736813561344,2.7486,181.98,181.93,2.7491]
[1736813561735,2.7486,181.98,181.92,17.78967731]
[1736813563242,2.7486,181.98,181.94,2.7491]
[1736813566144,2.7486,181.98,181.92,17.78967731]
[1736813566145,1.6533,182.07,181.95,13.00397731]
[1736813566344,1.6533,182.07,181.98,13.00397731]
[1736813567250,13.00397731,182.03,181.92,4.7857]
[1736813567445,13.00397731,182.03,181.92,17.78967731]
[1736813567642,2.7487,181.97,181.93,2.7492]
[1736813567843,2.7487,181.97,181.92,17.78967731]
[1736813568550,2.7485,181.98,181.94,2.749]
[1736813571456,2.7485,181.98,181.97,8.35230677]
[1736813572445,2.7483,181.99,181.97,8.35230677]
[1736813572651,8.35230677,182.04,181.97,8.35230677]
[1736813572852,1.6533,182.07,181.99,8.35230677]
[1736813573051,8.35230677,182.04,181.99,8.35230677]
[1736813574149,2.7482,182.0,181.99,8.35230677]
[1736813576645,8.35230677,182.04,181.99,8.35230677]
[1736813576846,8.35230677,182.06,181.99,8.35230677]
[1736813578152,2.748,182.01,181.99,8.35230677]
[1736813580652,8.35230677,182.09,182.0,8.35230677]
[1736813580852,3.2653,182.1,182.02,8.35230677]
[1736813580853,8.35230677,182.07,182.02,8.35230677]
[1736813581051,8.35230677,182.05,182.0,8.35230677]
[1736813582146,2.7481,182.01,182.0,8.35230677]
[1736813583553,2.7479,182.02,182.0,8.35230677]
[1736813586457,3.2653,182.1,182.0,8.35230677]
[1736813586756,2.7477,182.04,182.03,8.35230677]
[1736813594764,2.7477,182.04,182.01,8.35230677]
[1736813594967,8.35230677,182.05,181.99,5.62]
[1736813595262,8.35230677,182.05,181.99,13.97230677]
[1736813596067,2.748,182.02,181.99,13.97230677]
[1736813596664,8.35230677,182.07,182.01,8.35230677]
[1736813596969,3.2653,182.1,182.01,8.35230677]
[1736813597162,8.35230677,182.09,182.03,8.35230677]
[1736813597364,2.7475,182.05,182.03,8.35230677]
[1736813597964,2.7473,182.06,182.03,8.35230677]
[1736813598357,2.7472,182.07,182.03,11.09990677]
[1736813598962,8.35230677,182.09,182.05,8.35230677]
[1736813599168,2.7473,182.06,182.05,8.35230677]
[1736813599868,2.7473,182.06,182.03,8.35230677]
[1736813601578,8.35230677,182.09,182.03,8.35230677]
[1736813601880,8.35230677,182.07,182.01,13.97230677]
[1736813602076,8.35230677,182.07,181.87,179.45717257]
[1736813602273,110.60025773,182.12,181.96,2.7486]
[1736813602274,2.748,182.02,181.96,2.7486]
[1736813602477,8.35230677,182.05,181.99,8.35230677]
[1736813602776,2.7479,182.02,181.99,11.10060677]
[1736813602977,8.35230677,182.07,182.01,8.35230677]
[1736813603172,8.35230677,182.09,182.03,8.35230677]
[1736813603369,2.7471,182.08,182.03,8.35230677]
[1736813603573,1.7187,182.13,182.05,8.35230677]
[1736813603781,8.35230677,182.11,182.05,8.35230677]
[1736813604480,2.7473,182.06,182.05,8.35230677]
[1736813605779,2.7472,182.07,182.05,8.35230677]
[1736813607685,2.7473,182.06,182.05,8.35230677]
[1736813608580,2.7471,182.07,182.05,8.35230677]
[1736813615388,110.59888931,182.12,182.05,8.35230677]
[1736813615585,110.59888931,182.12,182.08,8.35230677]
[1736813616285,2.7469,182.09,182.08,8.35230677]
[1736813617994,2.7469,182.09,182.06,8.35230677]
[1736813621396,2.7469,182.09,182.05,2.7474]
[1736813621595,2.7469,182.09,182.07,8.35230677]
[1736813623298,2.7468,182.1,182.07,8.35230677]
[1736813626408,8.35230677,182.13,182.07,8.35230677]
[1736813626600,2.7466,182.11,182.09,8.35230677]
[1736813632197,8.35230677,182.15,182.09,8.35230677]
[1736813632403,2.7464,182.13,182.09,8.35230677]
[1736813632702,8.35230677,182.16,182.09,8.35230677]
[1736813632899,2.7464,182.12,182.09,8.35230677]
[1736813633303,2.7464,182.12,182.07,5.62]
[1736813633304,2.7464,182.12,182.11,8.35230677]
[1736813635700,8.35230677,182.16,182.11,8.35230677]
[1736813635901,2.7463,182.13,182.11,8.35230677]
[1736813637005,8.35230677,182.12,182.02,192.7064]
[1736813637199,8.35230677,182.08,182.02,192.7064]
[1736813637505,2.748,182.02,182.0,8.35230677]
[1736813637698,8.35230677,182.04,181.97,30.22486792]
[1736813637903,8.35230677,182.04,181.98,8.35230677]
[1736813638104,2.7483,182.0,181.97,30.22486792]
[1736813638305,8.35230677,182.02,181.96,11.50070677]
[1736813638604,8.35230677,182.02,181.96,8.35230677]
[1736813639003,8.35230677,182.0,181.94,8.35230677]
[1736813640105,2.7487,181.98,181.94,8.35230677]
[1736813640407,8.35230677,182.02,181.96,8.35230677]
[1736813641807,2.7481,182.01,181.96,8.35230677]
[1736813642109,2.7481,182.01,181.98,8.35230677]
[1736813644908,8.35230677,182.0,181.86,4.04296426]
[1736813645112,8.35230677,181.95,181.89,8.35230677]
[1736813645410,8.35230677,181.95,181.88,8.35230677]
[1736813645610,2.7496,181.91,181.88,8.35230677]
[1736813646807,8.35230677,181.95,181.88,8.35230677]
[1736813647008,2.7497,181.9,181.86,6.79326426]
[1736813647209,2.7497,181.9,181.88,8.35230677]
[1736813647409,8.35230677,181.95,181.88,8.35230677]
[1736813648110,2.7498,181.9,181.88,8.35230677]
[1736813648311,8.35230677,181.93,181.85,3.3166]
[1736813648614,1.6046,182.01,181.85,3.3166]
[1736813648816,8.35230677,181.94,181.88,8.35230677]
[1736813649712,2.7497,181.9,181.88,8.35230677]
[1736813650312,8.35230677,181.94,181.88,8.35230677]
[1736813650513,2.7495,181.92,181.9,8.35230677]
[1736813653007,8.35230677,181.96,181.9,8.35230677]
[1736813653008,2.7491,181.94,181.9,8.35230677]
[1736813654513,2.7491,181.94,181.92,8.35230677]
[1736813658114,2.7491,181.94,181.9,8.35230677]
[1736813658918,2.7491,181.95,181.9,8.35230677]
[1736813659119,8.35230677,181.96,181.9,8.35230677]
[1736813659821,8.35230677,181.94,181.88,8.35230677]
[1736813660015,8.35230677,181.94,181.88,11.10230677]
[1736813660619,2.7493,181.93,181.89,2.7499]
[1736813661211,2.7493,181.93,181.9,8.35230677]
[1736813664417,8.35230677,181.97,181.9,8.35230677]
[1736813664617,8.35230677,181.97,181.92,8.35230677]
[1736813665321,8.35230677,181.99,181.92,8.35230677]
[1736813665517,1.5792,182.03,181.94,8.35230677]
[1736813665721,8.35230677,182.01,181.94,8.35230677]
[1736813666426,8.35230677,182.01,181.92,5.64]
[1736813666623,8.35230677,182.01,181.94,8.35230677]
[1736813667228,2.7485,181.99,181.94,11.10140677]
[1736813667527,8.35230677,181.99,181.94,8.35230677]
[1736813669229,2.7488,181.97,181.94,8.35230677]
[1736813669527,8.35230677,181.99,181.94,8.35230677]
[1736813671131,2.7488,181.97,181.94,8.35230677]
[1736813672129,2.7493,181.94,181.9,2.7497]
[1736813672328,8.35230677,181.95,181.89,13.99230677]
[1736813672827,2.7495,181.93,181.89,16.74220677]
[1736813675030,2.7495,181.92,181.89,16.74220677]
[1736813675335,2.7495,181.92,181.89,11.10220677]
[1736813678335,2.7495,181.92,181.9,8.35230677]
[1736813680930,2.749,181.95,181.9,8.35230677]
[1736813681234,2.749,181.95,181.92,8.35230677]
[1736813681933,2.749,181.95,181.92,11.10170677]
[1736813682735,2.7489,181.96,181.92,11.10170677]
[1736813684736,2.749,181.95,181.92,11.10170677]
[1736813685238,2.7489,181.96,181.92,11.10170677]
[1736813685433,110.1843648,182.01,181.92,8.35230677]
[1736813685634,8.35230677,181.99,181.92,8.35230677]
[1736813686739,2.7487,181.97,181.94,2.7491]
[1736813686940,110.1843648,182.01,181.94,8.35230677]
[1736813687237,8.35230677,182.0,181.94,8.35230677]
[1736813687434,2.7486,181.98,181.95,2.7489]
[1736813690243,8.35230677,182.0,181.96,2.7488]
[1736813690244,2.7484,181.99,181.96,2.7488]
[1736813690745,2.7484,181.99,181.94,8.35230677]
[1736813690946,2.7484,181.99,181.95,2.749]
[1736813691747,2.7487,181.98,181.94,2.7492]
[1736813692344,2.7487,181.97,181.94,2.7492]
[1736813696750,2.7489,181.96,181.94,2.7492]
[1736813700752,2.7488,181.97,181.95,2.749]
[1736813701850,2.7488,181.97,181.93,8.35230677]
[1736813702052,2.7488,181.97,181.94,2.749]
[1736813702450,2.7486,181.98,181.95,8.35230677]
[1736813702755,110.1843648,182.01,181.95,8.35230677]
[1736813703056,2.7485,181.99,181.96,2.7487]
[1736813703357,2.7485,181.99,181.95,8.35230677]
[1736813703757,2.7485,181.99,181.96,2.7487]
[1736813704256,110.1843648,182.01,181.95,8.35230677]
[1736813704566,110.1843648,182.01,181.97,8.35230677]
[1736813705158,110.1843648,182.01,181.98,2.7485]
[1736813705557,110.1843648,182.01,181.97,8.35230677]
[1736813705763,1.7023,182.08,181.99,8.35230677]
[1736813706055,8.35230677,182.05,181.99,8.35230677]
[1736813706256,8.35230677,182.05,182.02,2.7479]
[1736813706452,2.7474,182.06,182.01,8.35230677]
[1736813706659,2.7474,182.06,182.03,8.35230677]
[1736813707652,2.7472,182.07,182.03,11.10010677]
[1736813708160,8.35230677,182.09,182.03,8.35230677]
[1736813708357,2.7469,182.09,182.05,11.09980677]
[1736813708561,1.7067,182.13,182.05,8.35230677]
[1736813708757,8.35230677,182.13,182.07,8.35230677]
[1736813708958,2.7464,182.12,182.07,11.09930677]
[1736813709463,2.7464,182.12,182.07,8.35230677]
[1736813709663,2.7464,182.12,182.08,2.747]
[1736813710256,8.35230677,182.13,182.09,11.09910677]
[1736813710461,8.35230677,182.15,182.09,11.09910677]
[1736813711260,8.35230677,182.17,182.11,8.35230677]
[1736813711460,172.16307,182.2,182.13,8.35230677]
[1736813711664,2.7457,182.18,182.13,11.09850677]
[1736813711865,8.35230677,182.19,182.13,8.35230677]
[1736813712067,8.35230677,182.17,182.08,3.3033]
[1736813712264,8.35230677,182.17,182.11,8.35230677]
[1736813712564,8.35230677,182.15,182.09,8.35230677]
[1736813713768,2.7464,182.13,182.09,8.35230677]
[1736813714769,8.35230677,182.15,182.09,11.09920677]
[1736813715069,2.7462,182.14,182.09,11.09920677]
[1736813715568,2.7463,182.13,182.09,11.09920677]
[1736813717466,8.35230677,182.15,182.09,11.09920677]
[1736813717665,2.7461,182.14,182.09,11.09920677]
[1736813718467,2.7461,182.14,182.11,8.35230677]
[1736813720869,2.7463,182.13,182.11,8.35230677]
[1736813721072,8.35230677,182.15,182.11,8.35230677]
[1736813722073,2.7462,182.14,182.11,8.35230677]
[1736813728776,2.7463,182.13,182.11,8.35230677]
[1736813729274,8.35230677,182.13,182.08,8.35230677]
[1736813729673,8.35230677,182.13,182.06,2.7473]
[1736813730076,8.35230677,182.13,182.07,8.35230677]
[1736813730776,2.7467,182.11,182.07,8.35230677]
[1736813734280,2.7467,182.1,182.07,8.35230677]
[1736813736989,2.7467,182.1,182.09,8.35230677]
[1736813742783,8.35230677,182.11,182.01,4.9142]
[1736813743087,2.7474,182.06,182.03,8.35230677]
[1736813743284,8.35230677,182.09,182.03,8.35230677]
[1736813744484,2.7475,182.06,182.03,8.35230677]
[1736813744982,8.35230677,182.07,182.01,8.35230677]
[1736813745190,8.35230677,182.05,181.99,8.35230677]
[1736813745584,2.7481,182.02,181.99,8.35230677]
[1736813745986,8.35230677,182.03,181.97,12.11733791]
[1736813746191,8.35230677,182.01,181.97,3.76503114]
[1736813746391,8.35230677,182.01,181.95,8.35230677]
[1736813748190,2.7486,181.98,181.95,8.35230677]
[1736813760303,2.7485,181.99,181.97,8.35230677]
[1736813761007,2.748,182.02,181.98,2.7485]
[1736813761198,2.748,182.02,181.99,8.35230677]
[1736813761396,8.35230677,182.05,181.99,8.35230677]
[1736813761693,8.35230677,182.03,181.99,8.35230677]
[1736813761896,2.7482,182.01,181.99,8.35230677]
[1736813762600,8.35230677,182.05,181.99,8.35230677]
[1736813763193,2.7479,182.03,181.99,11.10060677]
[1736813763597,8.35230677,182.05,181.99,8.35230677]
[1736813763794,2.748,182.02,181.99,8.35230677]
[1736813764190,2.7481,182.01,181.99,8.35230677]
[1736813765096,2.7481,182.01,181.97,11.10090677]
[1736813770502,2.7481,182.01,181.99,8.35230677]
[1736813774701,2.7479,182.03,181.99,11.10070677]
[1736813774904,5.4938,182.09,181.93,196.62]
[1736813774905,8.35230677,182.07,182.01,8.35230677]
[1736813775705,2.7477,182.04,182.01,8.35230677]
[1736813776303,2.7474,182.06,182.02,2.7478]
[1736813778305,2.7479,182.03,182.01,8.35230677]
[1736813779603,8.35230677,182.08,182.01,8.35230677]